fUSD/lending_fUSD_20260128
["ID","MTS","AMOUNT","RATE_DAILY","PERIOD"]
[403845779,1769593171457,-1346.08674905,0.00013956,2]
[403845780,1769593171478,-1346.08674905,0.00013956,2]
[403845781,1769593171498,-1346.08674905,0.00013956,2]
[403845782,1769593171519,-1346.08674905,0.00013956,2]
[403845783,1769593171540,-1346.08674905,0.00013956,2]
[403845784,1769593171562,-1346.08674905,0.00013956,2]
[403845785,1769593171584,-1346.08674905,0.00013956,2]
[403845786,1769593171607,-1346.08674905,0.00013956,2]
[403845787,1769593171630,-1346.08674905,0.00013956,2]
[403845788,1769593171650,-1346.08674905,0.00013956,2]
[403845789,1769593171671,-1346.08674905,0.00013956,2]
[403845790,1769593171692,-1346.08674905,0.00013956,2]
[403845791,1769593171713,-1346.08674905,0.00013956,2]
[403845792,1769593171735,-300.88064831,0.00013956,2]
[403845793,1769593171757,-1346.08674905,0.00013956,2]
[403845794,1769593171781,-209480.04303672,0.00013957,2]
[403845795,1769593171801,-265.0,0.00013957,2]
[403845796,1769593171820,-234.22420722,0.00013957,2]
[403845797,1769593171840,-33266.4327,0.00013959,2]
[403845798,1769593171861,-166.66,0.00013966,2]
[403845799,1769593171883,-5519.07746719,0.00013976,2]
[403845800,1769593171907,-217.15233878,0.00014012,2]
[403845801,1769593171929,-1147.64,0.0001405,2]
[403845802,1769593171952,-500.0,0.00014058,2]
[403845803,1769593171976,-500.0,0.00014058,2]
[403845804,1769593171996,-502.28343568,0.00014058,2]
[403845805,1769593172016,-500.0,0.00014058,2]
[403845806,1769593172037,-500.0,0.00014058,2]
[403845807,1769593172057,-500.0,0.00014058,2]
[403845808,1769593172078,-408.51255825,0.00014058,2]
[403845809,1769593172101,-500.0,0.00014058,2]
[403845810,1769593172122,-500.0,0.00014058,2]
[403845811,1769593172142,-477.41803844,0.00014058,2]
[403845812,1769593172164,-500.0,0.00014058,2]
[403845813,1769593172183,-261.56434182,0.00014058,2]
[403845814,1769593172203,-500.0,0.00014058,2]
[403845815,1769593172224,-500.0,0.00014058,2]
[403845816,1769593172243,-500.0,0.00014058,2]
[403845817,1769593172263,-500.0,0.00014058,2]
[403845818,1769593172282,-500.0,0.00014058,2]
[403845819,1769593172301,-528.82732304,0.00014058,2]
[403845820,1769593172320,-4603.7998848,0.00014059,2]
[403845821,1769593172340,-225.18697532,0.00014067,2]
[403845822,1769593172360,-150.00004452,0.0001407,2]
[403845823,1769593172380,-151.0,0.00014073,2]
[403845824,1769593172404,-151.0,0.00014073,2]
[403845825,1769593172423,-178597.9589291,0.00014076,2]
[403845826,1769593172442,-3825.89,0.00014076,2]
[403845827,1769593172466,-1196.84,0.00014076,2]
[403845828,1769593172487,-9999.99,0.00014076,2]
[403845829,1769593172506,-299.99,0.00014076,2]
[403845830,1769593172525,-9999.99,0.00014076,2]
[403845831,1769593172544,-593.18,0.00014076,2]
[403845832,1769593172563,-9999.99,0.00014076,2]
[403845833,1769593172582,-9999.99,0.00014076,2]
[403845834,1769593172602,-3697.18,0.00014076,2]
[403845835,1769593172622,-50024.39,0.00014076,2]
[403845836,1769593172642,-31540.77,0.00014076,2]
[403845837,1769593172662,-8806.7,0.00014076,2]
[403845838,1769593172684,-150.99,0.00014076,2]
[403845839,1769593172707,-150.99,0.00014076,2]
[403845840,1769593172726,-859.4,0.00014076,2]
[403845841,1769593172750,-150.0,0.00014105,2]
[403845842,1769593172772,-233.51889341,0.00014122,2]
[403845843,1769593172793,-500.0,0.00014158,2]
[403845844,1769593172813,-500.0,0.00014158,2]
[403845845,1769593172834,-500.0,0.00014158,2]
[403845846,1769593172855,-500.0,0.00014158,2]
[403845847,1769593172875,-500.0,0.00014158,2]
[403845848,1769593172896,-191.10032744,0.00014158,2]
[403845849,1769593172922,-242.15909246,0.00014177,2]
[403845850,1769593172943,-222.7140054,0.00014214,2]
[403845851,1769593172963,-251.11897888,0.00014232,2]
[403845852,1769593172986,-771.01131241,0.00014246,2]
[403845853,1769593173007,-500.0,0.00014254,2]
[403845854,1769593173026,-500.0,0.00014274,2]
[403845855,1769593173048,-260.4103811,0.00014287,2]
[403845856,1769593173067,-227.0,0.00014295,2]
[403845857,1769593173087,-6696.11155645,0.00014306,2]
[403845858,1769593173106,-348.28,0.00014307,2]
[403845859,1769593173126,-1147.64,0.00014324,2]
[403845860,1769593173147,-270.0455652,0.00014342,2]
[403845861,1769593173167,-6593.44837082,0.0001439,2]
[403845862,1769593173187,-280.03725112,0.00014397,2]
[403845863,1769593173208,-5519.07746719,0.00014412,2]
[403845864,1769593173228,-374.0,0.00014433,2]
[403845865,1769593173250,-479.0,0.00014439,2]
[403845866,1769593173272,-290.39862941,0.00014452,2]
[403845867,1769593173292,-1201.0,0.00014468,2]
[403845868,1769593173313,-155.21861138,0.00014505,2]
[403845869,1769593173334,-885.86649465,0.00014505,2]
[403845870,1769593173355,-181.08010149,0.00014505,2]
[403845871,1769593173377,-301.1433787,0.00014507,2]
[403845872,1769593173398,-200.0,0.00014595,2]
[403845873,1769593173419,-1147.64,0.00014598,2]
[403845874,1769593173439,-166.66,0.00014631,2]
[403845875,1769593173459,-166.11,0.00014639,2]
[403845876,1769593173479,-227.7,0.00014653,2]
[403845877,1769593173499,-151.0,0.00014755,2]
[403845878,1769593173521,-858.153113,0.00014755,2]
[403845879,1769593173541,-858.153113,0.00014755,2]
[403845880,1769593173564,-858.153113,0.00014755,2]
[403845881,1769593173584,-858.153113,0.00014755,2]
[403845882,1769593173605,-151.0,0.00014755,2]
[403845883,1769593173625,-212.421188,0.00014755,2]
[403845884,1769593173934,-6696.11155645,0.00014755,2]
[403845885,1769593173961,-163.21,0.0001478,2]
[403845886,1769593173983,-339.8,0.000148,2]
[403845887,1769593174004,-5519.07746719,0.00014848,2]
[403845888,1769593174026,-500.0,0.00014855,2]
[403845889,1769593174048,-500.0,0.00014855,2]
[403845890,1769593174071,-3134.67,0.00014856,2]
[403845891,1769593174093,-1147.64,0.00014872,2]
[403845892,1769593174115,-151.0,0.00014879,2]
[403845893,1769593174136,-153.48077,0.00014879,2]
[403845894,1769593174157,-151.0,0.00014879,2]
[403845895,1769593174176,-151.0,0.00014879,2]
[403845896,1769593174197,-151.0,0.00014879,2]
[403845897,1769593174217,-151.0,0.00014879,2]
[403845898,1769593174238,-151.0,0.00014879,2]
[403845899,1769593174258,-3134.67,0.00014879,2]
[403845900,1769593174279,-3134.67,0.00014902,2]
[403845901,1769593174300,-311.191948,0.00014912,2]
[403845902,1769593174320,-311.191948,0.00014912,2]
[403845903,1769593174340,-311.191948,0.00014912,2]
[403845904,1769593174359,-311.191948,0.00014912,2]
[403845905,1769593174378,-151.0,0.00014912,2]
[403845906,1769593174398,-3134.67,0.00014926,2]
[403845907,1769593174417,-500.0,0.00014931,2]
[403845908,1769593174436,-1271.71,0.00014939,2]
[403845909,1769593174456,-3134.67,0.00014949,2]
[403845910,1769593174475,-434.62,0.00014957,2]
[403845911,1769593174494,-3134.67,0.00014973,2]
[403845912,1769593174514,-3134.67,0.00014996,2]
[403845913,1769593174534,-500.0,0.00014999,2]
[403845914,1769593174553,-500.0,0.00014999,2]
[403845915,1769593174572,-500.0,0.00014999,2]
[403845916,1769593174591,-500.0,0.00014999,2]
[403845917,1769593174611,-500.0,0.00014999,2]
[403845918,1769593174666,1000.0,0.00013957,2]
[403845919,1769593174786,543.7989449,0.00013957,2]
[403845920,1769593174858,2500.0,0.00013857,2]
[403845921,1769593181328,300.0,0.00013956,2]
[403845923,1769593194566,-2921.72798311,0.0001502,2]
[403845925,1769593223294,1211.47807413,0.00013956,2]
[403845926,1769593223339,1211.47807413,0.00013956,2]
[403845927,1769593223397,1211.47807413,0.00013956,2]
[403845928,1769593223436,1211.47807413,0.00013956,2]
[403845929,1769593223495,1211.47807413,0.00013956,2]
[403845930,1769593223539,1211.47807413,0.00013956,2]
[403845931,1769593223577,1211.47807413,0.00013956,2]
[403845932,1769593223637,1211.47807413,0.00013956,2]
[403845933,1769593223676,308.18540696,0.00013956,2]
[403845934,1769593223702,903.29266717,0.00013956,2]
[403845935,1769593223741,1211.47807413,0.00013956,2]
[403845936,1769593223781,1211.47807413,0.00013956,2]
[403845937,1769593223819,1211.47807413,0.00013956,2]
[403845938,1769593223862,1211.47807413,0.00013956,2]
[403845939,1769593223904,1211.47807413,0.00013956,2]
[403845940,1769593223948,1211.47807413,0.00013956,2]
[403845941,1769593223995,1211.47807413,0.00013956,2]
[403845942,1769593224036,616.37081392,0.00013956,2]
[403845943,1769593224063,595.10726021,0.00013956,2]
[403845944,1769593224101,1211.47807413,0.00013956,2]
[403845945,1769593224146,1211.47807413,0.00013956,2]
[403845946,1769593224189,1211.47807413,0.00013956,2]
[403845947,1769593224229,1211.47807413,0.00013956,2]
[403845948,1769593224269,1211.47807413,0.00013956,2]
[403845949,1769593224307,1211.47807413,0.00013956,2]
[403845950,1769593224345,1211.47807413,0.00013956,2]
[403845951,1769593224384,924.55622088,0.00013956,2]
[403845952,1769593224408,286.92185325,0.00013956,2]
[403845953,1769593224445,1211.47807413,0.00013956,2]
[403845954,1769593224483,1211.47807413,0.00013956,2]
[403845955,1769593224543,1211.47807413,0.00013956,2]
[403845956,1769593224580,1211.47807413,0.00013956,2]
[403845957,1769593224616,1211.47807413,0.00013956,2]
[403845958,1769593224652,1211.47807413,0.00013956,2]
[403845959,1769593224689,1211.47807413,0.00013956,2]
[403845960,1769593224750,1211.47807413,0.00013956,2]
[403845963,1769593349002,150.0,0.00020726,30]
[403845964,1769593349146,150.0,0.00020781,30]
[403845965,1769593349320,200.0,0.00020836,30]
[403845966,1769593349369,150.0,0.00020726,30]
[403845969,1769593531228,150.0,0.00020726,30]
[403845970,1769593531381,150.0,0.00020781,30]
[403845971,1769593531553,150.0,0.00020836,30]
[403845972,1769593534360,150.0,0.00020726,30]
[403845973,1769593535884,150.0,0.00020726,30]
[403845974,1769593536052,150.0,0.00020781,30]
[403845975,1769593536198,200.0,0.00020836,30]
[403845976,1769593536248,150.0,0.00020726,30]
[403845977,1769593536412,150.0,0.00020781,30]
[403845978,1769593536582,150.0,0.00020726,30]
[403845979,1769593536733,234.16290156,0.00020836,30]
[403845980,1769593536788,150.0,0.00020781,30]
[403845981,1769593536942,200.0,0.00020836,30]
[403845982,1769593537763,150.0,0.00020726,30]
[403845983,1769593538412,150.0,0.00020726,30]
[403845984,1769593538569,150.0,0.00020781,30]
[403845985,1769593539583,200.0,0.00020836,30]
[403845986,1769593539688,200.0,0.00020726,30]
[403845987,1769593660490,1300.0,0.000138,5]
[403845988,1769593662377,2600.0,0.000139,5]
[403845989,1769593664509,3900.0,0.000149,5]
[403845990,1769593667618,-1200.0,0.00013756,2]
[403845991,1769593667646,-300.0,0.00013756,2]
[403845992,1769593667674,-300.0,0.00013756,2]
[403845993,1769593667701,-278.40012607,0.00013756,2]
[403845994,1769593667729,-578.20924308,0.00013757,2]
[403845995,1769593667757,-375.8377,0.00013757,2]
[403845996,1769593667788,-1435.1158617,0.00013757,2]
[403845997,1769593668289,-1064.8841383,0.00013757,2]
[403845998,1769593668316,-2564.75024007,0.00013757,2]
[403845999,1769593668348,-2740.74124326,0.00013757,2]
[403846000,1769593668376,-655.17328642,0.00013757,2]
[403846001,1769593668407,-3208.18094064,0.00013757,2]
[403846002,1769593668435,-249.62,0.000138,2]
[403846003,1769593668462,-291.0,0.00013846,2]
[403846004,1769593669056,-9566.49421092,0.00013847,2]
[403846005,1769593671169,-10000.01,0.00013847,2]
[403846006,1769593671183,-9342.24116674,0.00013847,2]
[403846007,1769593671192,-322.6107,0.00013848,2]
[403846008,1769593671201,-174.61919141,0.00013848,2]
[403846009,1769593671211,-160.53894185,0.00013848,2]
[403846010,1769593671225,-693.71997295,0.00013848,2]
[403846011,1769593671234,-721.12765535,0.00013848,2]
[403846012,1769593671243,-500.0,0.00013848,2]
[403846013,1769593671254,-209.40437684,0.00013848,2]
[403846014,1769593671263,-210.61645382,0.00013856,2]
[403846015,1769593671272,-312.4822028,0.00013856,2]
[403846016,1769593671282,-500.0,0.00013856,2]
[403846017,1769593671292,-500.0,0.00013856,2]
[403846018,1769593671302,-500.0,0.00013856,2]
[403846019,1769593671312,-252.98398494,0.00013856,2]
[403846020,1769593671322,-210.61645381,0.00013856,2]
[403846021,1769593671332,-500.0,0.00013856,2]
[403846022,1769593671341,-500.0,0.00013856,2]
[403846023,1769593671351,-500.0,0.00013856,2]
[403846024,1769593671360,-150.0,0.00013856,2]
[403846025,1769593671370,-500.0,0.00013856,2]
[403846026,1769593671380,-500.0,0.00013856,2]
[403846027,1769593671389,-408.98199245,0.00013856,2]
[403846028,1769593671399,-298.742,0.00013856,2]
[403846029,1769593680019,-1723.1847,0.00013757,2]
[403846030,1769593680712,237.1434,0.00013757,2]
[403846031,1769593682148,300.0,0.00013856,2]
[403846032,1769593682418,150.0,0.00013856,2]
[403846033,1769593697788,152.40043593,0.00020726,30]
[403846034,1769593697915,150.0,0.00020726,30]
[403846035,1769593698912,500.0,0.00013846,2]
[403846036,1769593698972,500.0,0.00013846,2]
[403846037,1769593699034,150.0,0.00020726,30]
[403846038,1769593699069,254.10007489,0.00013846,2]
[403846039,1769593699431,150.0,0.00020781,30]
[403846040,1769593699909,200.0,0.00020836,30]
[403846041,1769593701497,150.0,0.00020726,30]
[403846042,1769593701909,150.0,0.00020726,30]
[403846043,1769593702175,150.0,0.00020781,30]
[403846044,1769593702335,200.0,0.00020836,30]
[403846045,1769593702382,187.0,0.00013856,2]
[403846046,1769593703842,500.0,0.00013846,2]
[403846047,1769593703882,500.0,0.00013846,2]
[403846048,1769593703927,500.0,0.00013846,2]
[403846049,1769593703968,500.0,0.00013846,2]
[403846050,1769593704658,500.0,0.00013846,2]
[403846051,1769593704698,500.0,0.00013846,2]
[403846052,1769593704743,500.0,0.00013846,2]
[403846053,1769593704780,500.0,0.00013846,2]
[403846054,1769593704816,425.39712511,0.00013846,2]
[403846055,1769593704840,74.60287489,0.00013846,2]
[403846056,1769593705186,500.0,0.00013846,2]
[403846057,1769593705225,500.0,0.00013846,2]
[403846058,1769593705262,500.0,0.00013846,2]
[403846059,1769593705305,500.0,0.00013846,2]
[403846060,1769593705340,500.0,0.00013846,2]
[403846061,1769593705384,500.0,0.00013846,2]
[403846062,1769593705454,500.0,0.00013846,2]
[403846063,1769593705521,500.0,0.00013846,2]
[403846064,1769593705579,500.0,0.00013846,2]
[403846065,1769593705657,500.0,0.00013846,2]
[403846066,1769593705723,500.0,0.00013846,2]
[403846067,1769593705760,500.0,0.00013846,2]
[403846068,1769593705800,500.0,0.00013846,2]
[403846069,1769593705836,500.0,0.00013846,2]
[403846070,1769593705873,500.0,0.00013846,2]
[403846071,1769593705910,500.0,0.00013846,2]
[403846072,1769593705948,500.0,0.00013846,2]
[403846073,1769593705985,500.0,0.00013846,2]
[403846074,1769593706026,500.0,0.00013846,2]
[403846075,1769593706068,425.40712511,0.00013846,2]
[403846076,1769593706093,74.59287489,0.00013846,2]
[403846077,1769593706132,500.0,0.00013846,2]
[403846078,1769593706181,500.0,0.00013846,2]
[403846079,1769593706217,500.0,0.00013846,2]
[403846080,1769593706260,500.0,0.00013846,2]
[403846081,1769593706299,500.0,0.00013846,2]
[403846082,1769593706335,500.0,0.00013846,2]
[403846083,1769593706388,500.0,0.00013846,2]
[403846084,1769593706426,500.0,0.00013846,2]
[403846085,1769593706463,500.0,0.00013846,2]
[403846086,1769593706498,500.0,0.00013657,2]
[403846087,1769593706540,500.0,0.00013846,2]
[403846088,1769593706578,500.0,0.00013846,2]
[403846089,1769593706618,500.0,0.00013846,2]
[403846090,1769593706659,500.0,0.00013846,2]
[403846091,1769593706697,500.0,0.00013846,2]
[403846092,1769593706748,500.0,0.00013846,2]
[403846093,1769593706784,500.0,0.00013846,2]
[403846094,1769593706824,500.0,0.00013846,2]
[403846095,1769593706871,500.0,0.00013846,2]
[403846096,1769593706910,425.41712511,0.00013846,2]
[403846097,1769593706935,74.58287489,0.00013846,2]
[403846098,1769593706971,500.0,0.00013846,2]
[403846099,1769593707031,500.0,0.00013846,2]
[403846100,1769593707086,500.0,0.00013846,2]
[403846101,1769593707151,500.0,0.00013846,2]
[403846102,1769593707188,342.81388916,0.00013846,2]
[403846103,1769593707224,500.0,0.00013846,2]
[403846104,1769593758127,-360.3656,0.00013757,2]
[403846105,1769593758150,-1000.0,0.00013757,2]
[403846106,1769593758172,-3333.0862,0.00013757,2]
[403846107,1769593758192,-300.0,0.00013807,2]
[403846108,1769593781488,310.435796,0.00013757,2]
[403846109,1769593782019,150.0,0.00020726,30]
[403846110,1769593783079,200.0,0.00020726,30]
[403846111,1769593783151,150.0,0.00020726,30]
[403846112,1769593783220,150.0,0.00020726,30]
[403846113,1769593783731,150.0,0.00020781,30]
[403846114,1769593783783,200.0,0.00020726,30]
[403846115,1769593783846,150.0,0.00020781,30]
[403846116,1769593783902,200.0,0.00020836,30]
[403846117,1769593783957,200.0,0.00020836,30]
[403846118,1769593786376,-2189.564204,0.00013757,2]
[403846119,1769593786421,-500.0,0.00013846,2]
[403846120,1769593786457,-500.0,0.00013846,2]
[403846121,1769593786490,-500.0,0.00013846,2]
[403846122,1769593786520,-500.0,0.00013846,2]
[403846123,1769593786550,-500.0,0.00013846,2]
[403846124,1769593786584,-120.881592,0.00013846,2]
[403846125,1769593786783,-379.118408,0.00013846,2]
[403846126,1769593786822,-500.0,0.00013846,2]
[403846127,1769593786852,-500.0,0.00013846,2]
[403846128,1769593786884,-500.0,0.00013846,2]
[403846129,1769593786916,-500.0,0.00013846,2]
[403846130,1769593786948,-500.0,0.00013846,2]
[403846131,1769593786984,-500.0,0.00013846,2]
[403846132,1769593787016,-500.0,0.00013846,2]
[403846133,1769593787049,-500.0,0.00013846,2]
[403846134,1769593787083,-500.0,0.00013846,2]
[403846135,1769593787144,-500.0,0.00013846,2]
[403846136,1769593787177,-500.0,0.00013846,2]
[403846137,1769593787214,-500.0,0.00013846,2]
[403846138,1769593787247,-500.0,0.00013846,2]
[403846139,1769593787279,-500.0,0.00013846,2]
[403846140,1769593787312,-500.0,0.00013846,2]
[403846141,1769593787344,-500.0,0.00013846,2]
[403846142,1769593787376,-500.0,0.00013846,2]
[403846143,1769593787408,-500.0,0.00013846,2]
[403846144,1769593787439,-500.0,0.00013846,2]
[403846145,1769593787548,-500.0,0.00013846,2]
[403846146,1769593787580,-500.0,0.00013846,2]
[403846147,1769593787616,-500.0,0.00013846,2]
[403846148,1769593787652,-500.0,0.00013846,2]
[403846149,1769593787684,-500.0,0.00013846,2]
[403846150,1769593787717,-535.60431068,0.00013846,2]
[403846151,1769593787749,-500.0,0.00013846,2]
[403846152,1769593787782,-500.0,0.00013846,2]
[403846153,1769593787813,-500.0,0.00013846,2]
[403846154,1769593787848,-428.80137864,0.00013846,2]
[403846155,1769593788314,-71.19862136,0.00013846,2]
[403846156,1769593788346,-500.0,0.00013846,2]
[403846157,1769593788385,-500.0,0.00013846,2]
[403846158,1769593788416,-500.0,0.00013846,2]
[403846159,1769593788446,-500.0,0.00013846,2]
[403846160,1769593788476,-500.0,0.00013846,2]
[403846161,1769593788505,-500.0,0.00013846,2]
[403846162,1769593788534,-500.0,0.00013846,2]
[403846163,1769593788578,-500.0,0.00013846,2]
[403846164,1769593788614,-500.0,0.00013846,2]
[403846165,1769593788646,-357.61275728,0.00013846,2]
[403846166,1769593788775,-142.38724272,0.00013846,2]
[403846167,1769593788807,-500.0,0.00013846,2]
[403846168,1769593788842,-500.0,0.00013846,2]
[403846169,1769593788873,-500.0,0.00013846,2]
[403846170,1769593788905,-500.0,0.00013846,2]
[403846171,1769593788938,-500.0,0.00013846,2]
[403846172,1769593788975,-500.0,0.00013846,2]
[403846173,1769593789008,-500.0,0.00013846,2]
[403846174,1769593789041,-500.0,0.00013846,2]
[403846175,1769593789073,-500.0,0.00013846,2]
[403846176,1769593789106,-215.23551456,0.00013846,2]
[403846177,1769593789289,-284.76448544,0.00013846,2]
[403846178,1769593789323,-500.0,0.00013846,2]
[403846179,1769593789360,-500.0,0.00013846,2]
[403846180,1769593789403,-500.0,0.00013846,2]
[403846181,1769593789437,-500.0,0.00013846,2]
[403846182,1769593789471,-500.0,0.00013846,2]
[403846183,1769593789506,-500.0,0.00013846,2]
[403846184,1769593789540,-500.0,0.00013846,2]
[403846185,1769593789580,-436.35314364,0.00013853,2]
[403846186,1769593791209,1557.77474184,0.00013658,2]
[403846187,1769593791232,1401.47525816,0.00013658,2]
[403846188,1769593801201,1200.0,0.00013856,2]
[403846189,1769593811963,192.59053623,0.00013847,2]
[403846190,1769593815078,151.0,0.00013854,2]
[403846191,1769593824842,3236.3646,0.00013757,2]
[403846192,1769593827415,172.97660063,0.00013856,2]
[403846193,1769593831180,237.1434,0.00013757,2]
[403846210,1769593831620,-434.30423461,0.00013857,2]
[403846212,1769593831631,-1707.54897056,0.00013857,2]
[403846229,1769593831778,-355.00000001,0.00013857,2]
[403846234,1769593831837,-4471.907957,0.00013857,2]
[403846235,1769593831850,-24012.36906222,0.00013857,2]
[403846236,1769593837354,389.23721412,0.00013856,2]
[403846248,1769593837735,-2276.3772756,0.00013857,2]
[403846249,1769593837744,-180775.9414838,0.00013857,2]
[403846250,1769593837755,-948.38,0.00013857,2]
[403846251,1769593837788,-18092.58172436,0.00013857,2]
[403846252,1769593837800,-68321.30375633,0.00013857,2]
[403846253,1769593837810,-1875.93,0.00013857,2]
[403846254,1769593837822,-27230.1671319,0.00013857,2]
[403846478,1769593839847,-283.85068907,0.00013857,2]
[403846481,1769593839858,-670.25998743,0.00013857,2]
[403846487,1769593839901,-1151801.58522711,0.00013857,2]
[403846489,1769593839911,-264.0,0.00013857,2]
[403846491,1769593839920,-195.0,0.00013863,2]
[403846493,1769593839930,-600.0,0.00013868,2]
[403846495,1769593839939,-2500.0,0.00013868,2]
[403846496,1769593839949,-195.0,0.0001388,2]
[403846497,1769593839958,-600.0,0.00013902,2]
[403846498,1769593839967,-2500.0,0.00013902,2]
[403846499,1769593839976,-577.07952906,0.00013902,2]
[403846500,1769593839985,-217.15233878,0.00013903,2]
[403846501,1769593839994,-195.0,0.00013924,2]
[403846502,1769593840003,-974.04323017,0.00013925,2]
[403846503,1769593840011,-1480.12,0.00013945,2]
[403846504,1769593840020,-500.0,0.00013956,2]
[403846505,1769593840029,-500.0,0.00013956,2]
[403846506,1769593840038,-225.18697532,0.00013958,2]
[403846507,1769593840047,-233.51889341,0.00014013,2]
[403846508,1769593840056,-500.0,0.00014058,2]
[403846509,1769593840065,-500.0,0.00014058,2]
[403846510,1769593840073,-500.0,0.00014058,2]
[403846511,1769593840082,-500.0,0.00014058,2]
[403846512,1769593840091,-500.0,0.00014058,2]
[403846513,1769593840099,-26215.88,0.00014058,2]
[403846514,1769593840108,-242.15909246,0.00014068,2]
[403846515,1769593840117,-500.0,0.00014075,2]
[403846516,1769593840126,-500.0,0.00014075,2]
[403846517,1769593840135,-38291.9320107,0.00014075,2]
[403846518,1769593840148,-155.0,0.00014087,2]
[403846519,1769593840163,-251.11897888,0.00014123,2]
[403846520,1769593840172,-304.738324,0.00014127,2]
[403846521,1769593840183,-1745.0,0.00014131,2]
[403846522,1769593840192,-1207.0,0.00014138,2]
[403846523,1769593840202,-286.0,0.00014159,2]
[403846524,1769593840211,-260.4103811,0.00014178,2]
[403846525,1769593840220,-435.0,0.00014188,2]
[403846526,1769593840232,-2000.0,0.00014214,2]
[403846527,1769593840244,-2000.0,0.00014214,2]
[403846528,1769593840253,-2000.0,0.00014214,2]
[403846529,1769593840263,-2000.0,0.00014214,2]
[403846530,1769593840272,-2000.0,0.00014214,2]
[403846531,1769593840284,-2000.0,0.00014214,2]
[403846532,1769593840294,-2000.0,0.00014214,2]
[403846533,1769593840304,-414.896,0.00014214,2]
[403846534,1769593840314,-1000.0,0.00014214,2]
[403846535,1769593840323,-1000.0,0.00014214,2]
[403846536,1769593840332,-1000.0,0.00014214,2]
[403846537,1769593840342,-1000.0,0.00014214,2]
[403846538,1769593840351,-1000.0,0.00014214,2]
[403846539,1769593840362,-986.689,0.00014222,2]
[403846540,1769593840371,-221.0,0.00014226,2]
[403846541,1769593840380,-270.0455652,0.00014233,2]
[403846542,1769593840390,-500.0,0.00014254,2]
[403846543,1769593840399,-1278.35,0.00014254,2]
[403846544,1769593840409,-514.39,0.00014254,2]
[403846545,1769593840418,-9999.99,0.00014254,2]
[403846546,1769593840427,-999.99,0.00014254,2]
[403846547,1769593840436,-150.99,0.00014254,2]
[403846548,1769593840445,-299.99,0.00014254,2]
[403846549,1769593840455,-390.4620376,0.00014255,2]
[403846550,1769593840465,-865.0,0.00014271,2]
[403846551,1769593840474,-280.03725112,0.00014288,2]
[403846552,1769593840485,-863.0,0.000143,2]
[403846553,1769593840495,-155.0,0.00014318,2]
[403846554,1769593840504,-771.0,0.00014328,2]
[403846555,1769593840513,-500.0,0.00014343,2]
[403846556,1769593840523,-290.39862941,0.00014343,2]
[403846557,1769593840532,-873.0,0.00014357,2]
[403846558,1769593840541,-181.08010149,0.00014396,2]
[403846559,1769593840550,-885.86649465,0.00014396,2]
[403846560,1769593840560,-500.0,0.00014396,2]
[403846561,1769593840570,-301.1433787,0.00014398,2]
[403846562,1769593840584,-155.0,0.00014549,2]
[403846563,1769593840593,-500.0,0.00014617,2]
[403846564,1769593840602,-1480.12,0.00014642,2]
[403846565,1769593840612,-205.0,0.00014685,2]
[403846566,1769593840621,-155.0,0.0001478,2]